bitfinex-derivatives/quotes_SOLF0:USTF0_20250206
["timestamp","ask_amount","ask_price","bid_price","bid_amount"]
[1738857136791,0.03635165,191.32,191.22,39.55245723]
[1738857136998,0.03635165,191.32,191.28,5.227]
[1738857137198,0.03635165,191.32,191.22,39.55245723]
[1738857137393,5.26235165,191.32,191.26,5.2276]
[1738857137593,0.03635165,191.32,191.22,39.55245723]
[1738857139102,0.03635165,191.32,191.28,5.2268]
[1738857139503,5.26235165,191.32,191.26,5.2274]
[1738857139703,0.03635165,191.32,191.22,5.4998]
[1738857140203,34.05265723,191.31,191.22,5.4998]
[1738857140599,5.2277,191.26,191.2,8.5735]
[1738857140799,39.46025723,191.31,191.2,5.2291]
[1738857140999,3.3277,191.3,191.2,5.2291]
[1738857141303,0.03763981,191.27,191.19,5.2295]
[1738857141494,0.03763981,191.27,191.14,3.2545]
[1738857142004,3.3277,191.3,191.16,34.05265723]
[1738857142205,0.03736006,191.22,191.2,5.229]
[1738857142395,0.03736006,191.22,191.16,34.05265723]
[1738857142701,5.2277,191.26,191.16,34.05265723]
[1738857142900,0.03690245,191.21,191.14,3.2545]
[1738857143102,3.3277,191.3,191.14,3.2545]
[1738857143301,0.0344908,191.19,191.14,3.2545]
[1738857143498,3.3277,191.3,191.14,3.2545]
[1738857143896,0.03617908,191.18,191.14,3.2545]
[1738857144095,3.3277,191.3,191.14,3.2545]
[1738857144296,0.03421169,191.18,191.14,22.1245]
[1738857144500,0.03421169,191.18,191.17,5.2301]
[1738857144700,3.3277,191.3,191.14,22.1245]
[1738857144904,0.03386109,191.19,191.14,22.1245]
[1738857145106,5.2287,191.23,191.14,22.1245]
[1738857145402,0.03650782,191.18,191.11,8.733]
[1738857145706,34.05265723,191.24,191.11,8.733]
[1738857145898,5.229,191.22,191.11,8.733]
[1738857146098,0.0387391,191.16,191.11,8.733]
[1738857146300,0.0387391,191.16,191.12,8.0912]
[1738857146497,0.0387391,191.16,191.12,2.86]
[1738857146904,0.0387391,191.16,191.15,5.2307]
[1738857147106,0.0387391,191.16,191.12,7.04]
[1738857147704,0.0387391,191.16,191.15,5.2307]
[1738857148205,34.05265723,191.28,191.13,34.05265723]
[1738857148405,34.05265723,191.28,191.13,39.18015723]
[1738857149002,3.3277,191.3,191.13,39.18015723]
[1738857149207,39.46025723,191.31,191.16,34.05265723]
[1738857149409,0.03521715,191.23,191.2,0.03858136]
[1738857149708,39.46025723,191.31,191.2,0.03858136]
[1738857149903,34.05265723,191.28,191.2,4.21858136]
[1738857150104,0.03544874,191.23,191.2,17.28858136]
[1738857151606,0.03544874,191.23,191.21,5.229]
[1738857151904,0.03544874,191.23,191.2,17.28858136]
[1738857152409,5.229,191.21,191.2,17.28858136]
[1738857152610,0.03544874,191.23,191.2,17.28858136]
[1738857154005,0.03544874,191.23,191.22,5.2287]
[1738857154209,34.05265723,191.31,191.2,17.28858136]
[1738857154404,34.05265723,191.34,191.2,17.28858136]
[1738857154610,5.2263,191.31,191.26,5.2274]
[1738857154807,34.05265723,191.34,191.21,3.0639]
[1738857155119,3.3162,191.36,191.22,34.05265723]
[1738857155411,34.05265723,191.44,191.28,34.05265723]
[1738857155603,5.544e-05,191.29,191.28,5.2271]
[1738857155804,1.04476832,191.43,191.28,5.2271]
[1738857155805,1.04476832,191.43,191.28,18.12]
[1738857156205,1.04476832,191.43,191.29,34.05265723]
[1738857156406,1.04476832,191.43,191.35,34.05265723]
[1738857156602,1.04476832,191.43,191.36,3.0639]
[1738857156807,6.832e-05,191.43,191.41,5.2235]
[1738857157306,6.832e-05,191.43,191.37,0.03321213]
[1738857157507,34.05265723,191.4,191.37,0.03321213]
[1738857158007,5.2243,191.39,191.37,0.03321213]
[1738857158200,34.05265723,191.4,191.37,0.03321213]
[1738857158813,39.31002305,191.4,191.37,0.03321213]
[1738857159114,0.03346582,191.4,191.37,0.03321213]
[1738857159314,5.2242,191.39,191.37,0.03321213]
[1738857159712,5.2242,191.39,191.37,1.213e-05]
[1738857159913,5.2252,191.36,191.27,5.2273]
[1738857160215,34.05265723,191.4,191.27,5.2273]
[1738857160408,34.05265723,191.37,191.24,3.0494]
[1738857160609,34.05265723,191.34,191.23,3.3453]
[1738857160809,34.05265723,191.34,191.16,34.05265723]
[1738857161014,5.2267,191.3,191.28,22.3]
[1738857161315,34.05265723,191.31,191.16,34.05265723]
[1738857161521,5.2278,191.26,191.2,18.2960251]
[1738857161717,5.3267,191.3,191.21,1.04597039]
[1738857162013,5.2282,191.24,191.21,1.04597039]
[1738857162411,0.03360653,191.24,191.21,1.08197771]
[1738857162608,0.03360653,191.24,191.21,5.26197771]
[1738857163311,0.03360653,191.24,191.22,5.2286]
[1738857163812,0.03360653,191.24,191.21,5.26197771]
[1738857164416,5.26180653,191.24,191.21,5.26197771]
[1738857164611,0.03360653,191.24,191.21,5.26197771]
[1738857165111,0.03360653,191.24,189.43,41.09403927]
[1738857165112,68.10531446,191.22,190.84,68.19235445]
[1738857165317,34.05265723,191.09,190.93,6.4546]
[1738857165512,34.05265723,191.06,190.93,6.4546]
[1738857165919,34.05265723,191.06,190.99,5.2348]
[1738857166114,34.05265723,191.12,190.94,34.05265723]
[1738857166320,0.03625156,191.01,190.99,13.08]
[1738857166515,34.05265723,191.03,190.99,13.08]
[1738857167021,0.03388902,191.02,190.99,13.08]
[1738857168821,34.05265723,191.09,190.99,13.08]
[1738857169222,34.05265723,191.06,190.99,13.08]
[1738857170023,0.03754003,191.04,191.01,0.03581328]
[1738857171421,0.03754003,191.04,191.01,5.27021328]
[1738857171614,0.03754003,191.04,191.01,0.03581328]
[1738857172223,34.05265723,191.03,191.01,0.03581328]
[1738857173420,34.05265723,191.02,190.94,38.16]
[1738857173625,34.05265723,190.95,190.94,38.16]
[1738857173925,34.05265723,190.95,190.93,8.38]
[1738857174117,34.05265723,190.95,190.93,0.0658]
[1738857174322,5.2364,190.94,190.93,0.0658]
[1738857174626,5.14,190.94,190.73,21.25541401]
[1738857174824,34.05265723,190.92,190.75,11.6282]
[1738857175025,5.14,190.94,190.79,34.05265723]
[1738857175220,0.03398334,190.86,190.76,34.05265723]
[1738857175421,0.03398334,190.86,190.79,0.25]
[1738857176230,34.05265723,190.83,190.79,0.25]
[1738857176431,34.05265723,190.8,190.79,0.25]
[1738857176726,5.241,190.78,190.76,4.19]
[1738857176929,34.05265723,190.8,190.76,4.19]
[1738857177428,0.0371949,190.81,190.76,4.19]
[1738857178428,34.05265723,190.8,190.76,4.19]
[1738857179431,0.0371949,190.81,190.76,4.19]
[1738857179724,0.0371949,190.81,190.79,5.2405]
[1738857180933,0.0371949,190.81,190.77,11.8808]
[1738857181132,0.0371949,190.81,190.77,6.64]
[1738857182032,34.05265723,190.8,190.76,4.19]
[1738857182231,34.05265723,190.77,190.75,33.2]
[1738857182628,34.05265723,190.77,190.75,16.28]
[1738857183028,34.05265723,190.8,190.75,16.28]
[1738857183233,0.0371949,190.81,190.76,5.2412]
[1738857183430,0.0371949,190.81,190.75,17.41]
[1738857183635,0.0371949,190.81,190.76,21.6919]
[1738857183830,34.05265723,190.86,190.81,5.2399]
[1738857184030,34.05265723,190.89,190.76,26.8939]
[1738857184231,34.05265723,190.86,190.76,26.8939]
[1738857184433,34.05265723,190.83,190.76,26.8939]
[1738857185234,0.03882089,190.81,190.78,0.03496739]
[1738857185433,34.05265723,190.86,190.78,0.03496739]
[1738857185628,34.05265723,190.89,190.76,26.8939]
[1738857185930,34.05265723,190.92,190.76,26.8939]
[1738857186236,34.05265723,190.96,190.79,34.05265723]
[1738857186429,34.05265723,190.96,190.84,5.2391]
[1738857186631,0.03888395,190.89,190.86,0.03526954]
[1738857187029,34.05265723,190.87,190.82,5.2396]
[1738857187234,0.03661948,190.89,190.86,0.03364869]
[1738857187431,34.05265723,190.87,190.76,26.8939]
[1738857187631,34.05265723,190.82,190.76,26.8939]
[1738857187831,5.2389,190.86,190.76,26.8939]
[1738857187832,34.05265723,190.88,190.76,26.8939]
[1738857188123,39.25265723,190.91,190.76,26.8939]
[1738857188325,34.05265723,190.88,190.76,26.8939]
[1738857188529,34.08925294,190.85,190.82,0.0396875]
[1738857188935,0.03659571,190.85,190.82,0.0396875]
[1738857189137,5.2,190.91,190.83,5.2392]
[1738857189332,39.25265723,190.91,190.82,0.0396875]
[1738857190228,0.04027511,190.88,190.83,5.2392]
[1738857190426,0.04027511,190.88,190.82,0.0396875]
[1738857190827,0.04027511,190.88,190.86,5.2385]
[1738857191031,34.05265723,190.97,190.82,0.0396875]
[1738857191436,34.05265723,190.97,190.79,34.05265723]
[1738857191635,34.05265723,190.94,190.77,3.2768]
[1738857191937,5.2367,190.93,190.77,24.2368]
[1738857192235,0.03329138,190.87,190.84,0.03320902]
[1738857192430,0.03329138,190.87,190.86,5.2386]
[1738857192635,34.05265723,190.94,190.84,0.03320902]
[1738857192832,0.0394365,190.88,190.84,0.03320902]
[1738857193035,0.0394365,190.88,190.86,5.2386]
[1738857193835,0.0394365,190.88,190.87,5.2383]
[1738857194031,0.0394365,190.88,190.84,0.03320902]
[1738857194331,34.09209373,190.88,190.84,0.03320902]
[1738857194732,34.05265723,190.85,190.84,0.03320902]
[1738857195235,34.09209373,190.88,190.84,0.03320902]
[1738857196333,34.05265723,190.85,190.84,0.03320902]
[1738857196738,34.05265723,190.85,190.77,24.2368]
[1738857196942,34.05265723,190.82,190.77,20.96]
[1738857197438,34.05265723,190.82,190.76,5.202]
[1738857197735,5.2403,190.8,190.75,17.41]
[1738857198040,34.05265723,190.8,190.77,0.03560288]
[1738857198236,5.2412,190.77,190.75,1.13]
[1738857198437,34.05265723,190.76,190.75,1.13]
[1738857198935,5.2419,190.74,190.69,20.97]
[1738857199140,34.05265723,190.76,190.69,20.97]
[1738857199635,0.03352196,190.74,190.7,0.03938539]
[1738857200136,0.03352196,190.74,190.67,13.82]
[1738857201241,0.03352196,190.74,190.67,19.0636]
[1738857201434,0.03352196,190.74,190.67,13.82]
[1738857201633,0.03352196,190.74,190.68,3.0845]
[1738857202233,0.03352196,190.74,190.69,3.3739]
[1738857202841,0.03352196,190.74,190.7,5.5041]
[1738857203040,34.05265723,190.83,190.73,5.2421]
[1738857203241,52.86993563,190.86,190.7,5.5041]
[1738857203943,34.05265723,190.85,190.7,5.5041]
[1738857204136,52.86993563,190.86,190.7,5.5041]
[1738857204338,0.03717117,190.8,190.76,0.03996348]
[1738857204842,34.0898284,190.8,190.76,0.03996348]
[1738857205341,34.05265723,190.77,190.76,0.03996348]
[1738857205942,0.03717117,190.8,190.76,0.03996348]
[1738857205943,34.0898284,190.8,190.76,0.03996348]
[1738857206238,0.03717117,190.8,190.76,0.03996348]
[1738857206545,34.05265723,190.77,190.76,0.03996348]
[1738857207146,34.05265723,190.77,190.67,13.82]
[1738857207349,34.05265723,190.73,190.67,13.82]
[1738857207742,34.05265723,190.73,190.61,8.1832]
[1738857208144,34.05265723,190.73,190.62,3.308]
[1738857208447,5.27675462,190.71,190.62,3.308]
[1738857208635,34.05265723,190.7,190.62,3.308]
[1738857208836,0.03385462,190.71,190.62,16.678]
[1738857209941,0.03385462,190.71,190.62,37.658]
[1738857211437,0.03385462,190.71,190.65,5.2443]
[1738857211646,0.03385462,190.71,190.62,37.658]
[1738857212548,0.03385462,190.71,190.64,5.2445]
[1738857212847,0.03385462,190.71,190.62,37.658]
[1738857213740,5.2413,190.77,190.66,34.05265723]
[1738857213943,34.05265723,190.83,190.66,34.05265723]
[1738857214450,34.05265723,190.79,190.62,37.658]
[1738857215041,0.03896228,190.72,190.69,0.03559149]
[1738857215450,34.05265723,190.73,190.63,3.3809]
[1738857215646,0.03540792,190.72,190.69,0.03884639]
[1738857219647,5.27800792,190.72,190.69,0.03884639]
[1738857219852,34.05265723,190.7,190.69,0.03884639]
[1738857220254,0.03540792,190.72,190.69,0.03884639]
[1738857220447,34.05265723,190.7,190.69,0.03884639]
[1738857221856,34.05265723,190.7,190.65,20.98]
[1738857222750,21.39686214,190.7,190.65,20.98]
[1738857222943,5.2434,190.69,190.65,20.98]
[1738857223143,21.39686214,190.7,190.65,20.98]
[1738857223549,26.64076214,190.67,190.65,20.98]
[1738857223950,26.64076214,190.67,190.62,13.37]
[1738857224148,21.39686214,190.67,190.62,13.37]
[1738857224847,0.03582189,190.68,190.62,13.37]
[1738857225051,0.03582189,190.68,190.62,32.31]
[1738857225052,21.39686214,190.67,190.62,32.31]
[1738857226154,0.03582189,190.68,190.62,32.31]
[1738857231058,0.03582189,190.68,190.63,5.2449]
[1738857231259,0.03582189,190.68,190.62,32.31]
[1738857232065,5.2417,190.75,190.67,5.2438]
[1738857232255,21.39686214,190.76,190.68,3.1318]
[1738857232563,5.2411,190.77,190.69,5.2433]
[1738857232760,21.39686214,190.79,190.69,10.5147]
[1738857233162,21.39686214,190.79,190.69,5.2714]
[1738857233365,21.43179072,190.76,190.72,0.03761088]
[1738857233556,21.39686214,190.73,190.72,0.03761088]
[1738857233762,26.63906214,190.73,190.72,0.03761088]
[1738857233961,21.43179072,190.76,190.72,0.03761088]
[1738857234360,21.43179072,190.76,190.72,20.62761088]
[1738857234558,21.39686214,190.73,190.72,20.62761088]
[1738857234761,21.39686214,190.73,190.68,3.1318]
[1738857235063,21.39686214,190.73,190.63,5.2714]
[1738857235265,21.39686214,190.73,190.64,3.2039]
[1738857235566,21.39686214,190.76,190.64,3.2039]
[1738857235861,21.39686214,190.76,190.7,5.2429]
[1738857236065,0.03863225,190.72,190.7,5.2429]
[1738857236266,21.39686214,190.76,190.7,5.2429]
[1738857236465,21.39686214,190.76,190.64,20.5339]
[1738857236667,21.39686214,190.73,190.64,20.5339]
[1738857237359,0.03581189,190.7,190.67,0.03722615]
[1738857237760,23.00500791,190.86,190.67,0.03722615]
[1738857237761,20.68980791,190.86,190.67,0.03722615]
[1738857237960,21.39686214,190.81,190.66,21.39686214]
[1738857238167,21.39686214,190.85,190.66,21.39686214]
[1738857238368,20.68980791,190.86,190.66,21.39686214]
[1738857238369,21.39686214,190.82,190.66,21.39686214]
[1738857238671,21.39686214,190.7,190.64,17.33]
[1738857239068,0.0340217,190.69,190.65,0.03923891]
[1738857239573,21.39686214,190.74,190.65,0.03923891]
[1738857239765,5.2417,190.75,190.65,0.03923891]
[1738857239962,5.2417,190.75,190.62,13.37]
[1738857239963,21.39686214,190.8,190.62,13.37]
[1738857240375,21.39686214,190.8,190.63,1.0491528]
[1738857240668,0.03464041,190.73,190.7,0.03607156]
[1738857240869,5.27704041,190.73,190.7,0.03607156]
[1738857241070,21.39686214,190.76,190.62,34.23]
[1738857241276,0.03422518,190.73,190.7,0.03314256]
[1738857242971,21.39686214,190.8,190.7,0.03314256]
[1738857243173,42.08667005,190.84,190.7,0.03314256]
[1738857243374,20.68980791,190.84,190.7,0.03314256]
[1738857243572,20.68980791,190.84,190.7,5.5652]
[1738857243772,5.2393,190.84,190.75,5.2414]
[1738857243968,42.08667005,190.85,190.76,3.2486]
[1738857244269,0.03870834,190.79,190.76,3.2486]
[1738857244476,20.68980791,190.85,190.76,3.2486]
[1738857244671,15.60770791,190.85,190.76,3.2486]
[1738857244871,10.52560791,190.85,190.77,21.39686214]
[1738857245180,10.52560791,190.85,190.81,5.2399]
[1738857245472,10.52560791,190.85,190.76,3.2486]
[1738857245473,10.52560791,190.85,190.82,5.5652]
[1738857245676,0.03652503,190.85,190.82,5.5652]
[1738857246377,5.2397,190.83,190.81,0.03957788]
[1738857246768,0.03652503,190.85,190.81,0.03957788]
[1738857247280,21.39686214,190.92,190.81,0.03957788]
[1738857247574,21.39686214,190.89,190.77,5.1025]
[1738857248181,5.2385,190.87,190.77,5.1025]
[1738857248375,0.03711846,190.85,190.81,0.03968034]
[1738857249483,74.24335482,190.95,190.81,0.03968034]
[1738857249779,21.59376214,190.98,190.83,21.39686214]
[1738857250081,55.17282109,190.99,190.91,5.2372]
[1738857250380,48.12962109,190.99,190.89,21.39686214]
[1738857250576,43.76548173,190.99,190.93,0.03972358]
[1738857250776,27.91758173,190.99,190.93,0.03972358]
[1738857250978,16.86428173,190.99,190.92,21.39686214]
[1738857251178,14.87728173,190.99,190.92,21.39686214]
[1738857251376,12.11728173,190.99,190.95,21.39686214]
[1738857251880,49.02906156,191.0,190.98,21.39686214]
[1738857252083,218.01979625,191.05,190.98,21.39686214]
[1738857252084,44.64848385,191.02,190.98,21.39686214]
[1738857252285,82.85462067,191.1,191.01,21.39686214]
[1738857252581,82.85462067,191.1,191.07,21.39686214]
[1738857252781,82.85462067,191.1,191.0,21.39686214]
[1738857252782,82.85462067,191.1,191.09,39.80191967]
[1738857253180,62.24392067,191.1,191.09,39.80191967]
[1738857253386,81.05747927,191.12,191.11,5.2318]
[1738857253587,78.92856839,191.12,191.11,5.2318]
[1738857254077,78.92856839,191.12,191.09,69.13923934]
[1738857254383,0.03625305,191.13,191.09,76.77923934]
[1738857254581,1.06,191.31,191.12,34.56961967]
[1738857254792,1.06,191.31,191.19,34.56961967]
[1738857254979,1.06,191.34,191.25,34.56961967]
[1738857255175,1.06,191.34,191.22,34.56961967]
[1738857255381,5.2261,191.32,191.22,34.56961967]
[1738857255585,1.06,191.34,191.22,34.56961967]
[1738857255786,5.3331,191.38,191.22,34.56961967]
[1738857255983,5.3331,191.38,191.28,141.65616136]
[1738857255984,0.03896606,191.29,191.28,141.65616136]
[1738857256381,37.44801967,191.39,191.28,141.65616136]
[1738857256686,1.06,191.38,191.28,141.65616136]
[1738857256875,0.03971044,191.3,191.28,141.65616136]
[1738857257276,34.56961967,191.33,191.28,141.65616136]
[1738857257479,42.18961967,191.4,191.31,39.34439201]
[1738857257780,42.18961967,191.4,191.27,160.91964002]
[1738857257980,0.03489379,191.37,191.27,122.47563182]
[1738857258282,34.56961967,191.28,191.26,7.04597432]
[1738857258676,39.79681967,191.28,191.26,7.04597432]
[1738857258879,34.56961967,191.3,191.25,21.13792298]
[1738857259086,34.56961967,191.3,191.26,17.18]
[1738857259288,5.2272,191.28,191.26,17.18]
[1738857259486,0.0389013,191.29,191.26,17.18]
[1738857259986,5.2273,191.28,191.26,38.09]
[1738857260485,34.56961967,191.27,191.25,21.17705067]
[1738857260687,5.2277,191.26,191.25,21.17705067]
[1738857260988,0.0389013,191.29,191.25,0.03912769]
[1738857261286,5.2275,191.27,191.25,0.03912769]
[1738857261487,39.79711967,191.27,191.25,0.03912769]
[1738857261784,34.56961967,191.27,191.18,14.41]
[1738857261981,0.0389013,191.29,191.18,14.41]
[1738857262183,34.56961967,191.33,191.18,14.41]
[1738857262488,5.2284,191.24,191.18,14.41]
[1738857262987,0.036572,191.23,191.19,0.03718452]
[1738857265484,5.2293,191.2,191.19,0.03718452]
[1738857265879,5.2318,191.11,191.02,4.441]
[1738857266079,34.56961967,191.16,191.03,2.9066]
[1738857266279,34.56961967,191.16,191.04,1.04690117]
[1738857266482,34.56961967,191.13,191.04,1.04690117]
[1738857266680,34.56961967,191.1,191.04,1.04690117]
[1738857267084,5.2334,191.05,191.04,1.04690117]
[1738857267279,34.56961967,191.07,191.02,16.71]
[1738857267483,5.2337,191.04,191.03,1.0806074]
[1738857268981,34.56961967,191.05,190.86,34.56961967]
[1738857269186,34.56961967,191.02,190.87,2.9194]
[1738857269485,5.2363,190.95,190.91,15.73]
[1738857269693,34.56961967,191.02,190.91,15.73]
[1738857269887,34.56961967,190.96,190.91,15.73]
[1738857270087,5.2383,190.88,190.82,2.8494]
[1738857270291,34.56961967,190.9,190.75,7.3613]
[1738857270593,34.56961967,190.9,190.83,0.03431786]
[1738857270787,5.2393,190.84,190.83,0.03431786]
[1738857270991,5.27873395,190.84,190.83,0.03431786]
[1738857271896,5.27873395,190.84,190.83,1.0823711]
[1738857272086,5.27873395,190.84,190.83,1.04805324]
[1738857272285,5.27873395,190.84,190.83,1.04350407]
[1738857273792,0.03943395,190.84,190.83,1.04350407]
[1738857274295,5.2394,190.83,190.82,0.03911411]
[1738857275197,0.03943395,190.84,190.82,0.03911411]
[1738857275693,20.09538873,191.0,190.83,34.56961967]
[1738857275990,34.56961967,190.99,190.84,2.8381]
[1738857276196,34.56961967,190.96,190.8,34.56961967]
[1738857276496,34.56961967,190.96,190.81,5.2398]
[1738857276693,34.56961967,190.96,190.8,34.56961967]
[1738857276894,0.03966195,190.9,190.86,0.03890043]
[1738857277300,20.09538873,191.0,190.86,34.56961967]
[1738857277591,20.09538873,191.0,190.8,34.56961967]
[1738857277592,20.09538873,191.0,190.89,34.56961967]
[1738857277793,20.09538873,191.0,190.92,34.56961967]
[1738857277993,20.09538873,191.0,190.95,34.56961967]
[1738857278200,8.61918873,191.01,190.95,34.56961967]
[1738857278604,0.03657502,191.0,190.96,0.03830237]
[1738857279090,8.61918873,191.01,190.98,5.2353]
[1738857279505,8.61918873,191.01,190.96,0.03830237]
[1738857280102,5.2356,190.98,190.96,0.03830237]
[1738857280406,0.03977321,191.0,190.96,0.03830237]
[1738857281103,0.03977321,191.0,190.96,2.37e-06]
[1738857281303,5.2353,190.98,190.96,2.37e-06]
[1738857282998,2.6522,190.99,190.96,2.37e-06]
[1738857283203,34.56961967,190.97,190.76,34.56961967]
[1738857283403,34.56961967,190.88,190.71,2.7216]
[1738857283602,34.56961967,190.85,190.72,1.04865771]
[1738857283804,34.56961967,190.82,190.72,1.04865771]
[1738857284200,5.241,190.78,190.72,1.04865771]
[1738857284406,34.56961967,190.82,190.72,1.04865771]
[1738857284708,0.0330244,190.79,190.75,0.04021303]
[1738857284905,0.0330244,190.79,190.76,1.04843782]
[1738857285514,5.2412,190.77,190.76,1.04843782]
[1738857286206,5.2426,190.72,190.64,5.2445]
[1738857286413,34.60264407,190.79,190.65,1.04904274]
[1738857286709,34.56961967,190.79,190.65,6.29324274]
[1738857287009,34.56961967,190.79,190.65,1.04904274]
[1738857287209,34.56961967,190.79,190.66,5.2438]
[1738857287406,34.56961967,190.79,190.7,0.03880775]
[1738857287613,0.03910837,190.74,190.7,0.03880775]
[1738857287808,0.03910837,190.74,190.71,1.0487127]
[1738857288208,34.56961967,190.82,190.71,1.0487127]
[1738857288614,5.2406,190.79,190.71,1.0487127]
[1738857288814,34.56961967,190.82,190.71,1.0487127]
[1738857289510,0.03593892,190.78,190.75,0.04027107]
[1738857289708,5.27673892,190.78,190.75,0.04027107]
[1738857291711,0.03593892,190.78,190.75,0.04027107]
[1738857292316,7.0,190.95,190.75,0.04027107]
[1738857292511,34.56961967,190.91,190.75,0.04027107]
[1738857292714,34.56961967,190.91,190.75,34.56961967]
[1738857293215,34.56961967,190.91,190.73,2.9359]
[1738857293413,34.56961967,190.88,190.73,2.9359]
[1738857293616,0.03584726,190.84,190.8,0.03306077]
[1738857294415,5.27524726,190.84,190.8,0.03306077]
[1738857294622,0.03584726,190.84,190.8,0.03306077]
[1738857296423,34.56961967,190.83,190.8,0.03306077]
[1738857296615,0.03584726,190.84,190.8,0.03306077]
[1738857297519,34.56961967,190.81,190.7,4.2862]
[1738857297719,34.56961967,190.77,190.7,4.2862]
[1738857298119,39.81081967,190.77,190.7,4.2862]
[1738857298320,34.56961967,190.77,190.7,4.2862]
[1738857298523,39.80991967,190.8,190.73,5.2421]
[1738857298925,0.03517083,190.75,190.73,5.2421]
[1738857299224,0.03517083,190.75,190.74,5.2419]
[1738857299626,0.03517083,190.75,190.72,0.0390667]
[1738857300624,34.56961967,190.88,190.72,0.0390667]
[1738857300817,5.2397,190.83,190.77,5.241]
[1738857301020,34.56961967,190.88,190.72,34.56961967]
[1738857301221,34.56961967,190.85,190.7,4.2862]
[1738857301923,0.03506016,190.79,190.78,5.2408]
[1738857302329,88.15732297,190.88,190.73,2.6527]
[1738857302630,6.56e-05,190.8,190.77,0.0373464]
[1738857302821,6.56e-05,190.8,190.78,34.56961967]
[1738857303028,6.56e-05,190.8,190.79,5.2405]
[1738857303833,6.56e-05,190.8,190.77,5.2784464]
[1738857304034,6.56e-05,190.8,190.77,0.0373464]
[1738857304435,6.56e-05,190.8,190.79,5.2405]
[1738857306426,13.30336139,190.9,190.78,37.49971967]
[1738857306626,13.30336139,190.9,190.82,34.56961967]
[1738857306927,50.98586469,190.91,190.83,4.4356]
[1738857307134,80.88177031,190.93,190.89,34.56961967]
[1738857307537,80.88177031,190.93,190.83,4.4356]
[1738857307729,80.92072941,190.93,190.89,0.03466798]
[1738857308736,0.0389591,190.93,190.92,5.237]
[1738857309130,0.0389591,190.93,190.89,0.03466798]
[1738857310133,0.0389591,190.93,190.91,5.2372]
[1738857310342,20.559779,190.98,190.91,34.56961967]
[1738857310742,20.559779,190.98,190.97,5.2356]
[1738857310938,20.559779,190.98,190.89,0.03466798]
[1738857311134,20.559779,190.98,190.85,34.56961967]
[1738857311341,34.56961967,190.97,190.79,34.56961967]
[1738857311835,0.03509761,190.93,190.84,5.239]
[1738857312043,0.03509761,190.93,190.86,0.03546332]
[1738857312339,5.2393,190.84,190.77,5.2408]
[1738857312643,4.4231,190.92,190.8,34.56961967]
[1738857312845,9.6603,190.92,190.86,5.2385]
[1738857313044,4.4231,190.92,190.8,34.56961967]
[1738857313342,4.4231,190.92,190.8,5.2402]
[1738857313343,5.2389,190.85,190.8,5.2402]
[1738857313541,0.03773511,190.88,190.84,0.03581957]
[1738857313942,4.4231,190.92,190.78,34.56961967]
[1738857314243,0.03423069,190.88,190.84,0.03396902]
[1738857315341,0.03423069,190.88,190.78,5.2405]
[1738857315540,34.60385036,190.88,190.72,34.56961967]
[1738857315841,34.56961967,190.85,190.69,34.56961967]
[1738857316343,34.56961967,190.85,190.66,1.4685]
[1738857316344,34.56961967,190.91,190.75,34.56961967]
[1738857316543,4.4231,190.92,190.75,34.56961967]
[1738857316745,8.758e-05,190.79,190.78,34.56961967]
[1738857317045,34.56961967,190.88,190.71,34.56961967]
[1738857317743,34.56961967,190.85,190.68,34.56961967]
[1738857317941,0.0398012,190.81,190.78,0.0389545]
[1738857318244,0.0398012,190.81,190.68,34.56961967]
[1738857318448,0.0398012,190.81,190.65,34.56961967]
[1738857318640,2.8873,190.81,190.65,34.56961967]
[1738857318950,5.2403,190.8,190.68,34.56961967]
[1738857319144,2.8873,190.81,190.75,34.56961967]
[1738857319443,5.142e-05,190.76,190.75,39.81121967]
[1738857319642,2.8873,190.9,190.75,34.56961967]
[1738857320445,5.239,190.85,190.77,5.2408]
[1738857320642,0.03503881,190.84,190.81,0.03711475]
[1738857321449,0.03503881,190.84,190.69,34.56961967]
[1738857321643,5.2402,190.81,190.74,5.2418]
[1738857321851,34.56961967,190.85,190.69,34.56961967]
[1738857322051,34.56961967,190.85,190.66,34.56961967]
[1738857322249,34.56961967,190.88,190.69,34.56961967]
[1738857322447,34.56961967,190.88,190.72,34.56961967]
[1738857322746,0.03486628,190.8,190.77,0.03424581]
[1738857323149,2.8873,190.9,190.77,0.03424581]
[1738857323349,6.352e-05,190.8,190.78,34.56961967]
[1738857323550,2.8873,190.9,190.78,34.56961967]
[1738857324451,2.8873,190.9,190.81,34.56961967]
[1738857324649,0.03825538,190.86,190.82,0.03752636]
[1738857325451,5.27705538,190.86,190.79,5.2405]